[Event "FTX Crypto Cup MCCT 2022"]
[Site "Miami"]
[Date "2022.08.11"]
[Round "3.3"]
[White "Aronian, Levon"]
[Black "Carlsen, Magnus"]
[Result "1/2-1/2"]
[ECO "D02"]
[WhiteElo "2775"]
[BlackElo "2864"]
[Annotator "TA"]
[PlyCount "151"]
[EventDate "2022.08.10"]
[EventType "tourn"]
[EventCountry "USA"]
[SourceTitle "playchess.com"]
[Source "ChessBase"]
[SourceQuality "1"]
[TimeControl "900+10"]

{[%evp 13,150,9,9,9,16,21,27,20,27,16,20,12,12,12,1,10,20,13,25,18,30,22,34,9,30,28,29,16,27,25,37,17,32,18,15,0,16,0,17,19,16,18,10,0,15,8,18,11,27,26,16,10,33,0,0,0,0,0,0,-50,0,0,0,0,0,0,0,0,0,0,0,0,0,0,0,0,0,0,0,0,0,0,0,0,0,0,0,0,0,0,0,0,0,0,0,0,0,0,0,0,0,0,0,0,0,0,0,0,0,0,0,0,0,0,0,0,0,0,0,0,0,0,0,0,0,0,0,0,0,0,0,0,0,0,0,0,0,0,0]} 1. d4 {[%emt 0:00:00]} d5 {[%emt 0:00:00]} 2. Nf3 {[%emt 0:00:03]} Nf6 {[%emt 0:00:10]} 3. c3 {[%emt 0:00:02]} Nc6 {[%emt 0:02:05]} 4. g3 {[%emt 0:00:38]} e6 {[%emt 0:00:24]} 5. Bg2 {[%emt 0:00:03]} Bd6 {[%emt 0:00:02]} 6. O-O {[%emt 0:00:21]} h6 {[%emt 0:02:02]} 7. Nbd2 {[%emt 0:00:18]} O-O {[%emt 0:00:29]} 8. Qc2 {[%emt 0:00:02] D02: 1 d4 d5 2 Nf3 sidelines, including 2...Nf6 3 g3 and 2...Nf6 3 Bf4.} e5 {[%emt 0:01:07]} 9. dxe5 {[%emt 0:00:12]} Nxe5 {[%emt 0:00:00]} 10. Nxe5 {[%emt 0:00:02] White has an edge.} Bxe5 {[%emt 0:00:01] [#]} 11. c4 $146 {[%emt 0:00:00]} ({Predecessor:} 11. Nf3 Bd6 12. Rd1 Re8 13. c4 dxc4 14. Qxc4 Qe7 15. e3 Rb8 16. Nd4 Be5 17. a3 {1-0 (54) Rabeda,G (1604)-Czaplewska,K Kolobrzeg 2009}) 11... c6 {[%emt 0:00:27]} 12. cxd5 {[%emt 0:00:45]} Nxd5 {[%emt 0:00:02]} 13. a3 {[%emt 0:00:00]} Qe7 {[%emt 0:00:23]} 14. Nb3 {[%emt 0:01:06]} Re8 {[%emt 0:01:16]} 15. e4 {[%emt 0:00:36]} Nf6 {[%emt 0:01:13]} 16. Be3 {[%emt 0:00:04]} Be6 {[%emt 0:00:03]} 17. Rad1 {[%emt 0:00:21]} Ng4 {[%emt 0:00:35]} 18. Bc1 {[%emt 0:00:16]} Rad8 {[%emt 0:00:02]} 19. h3 {[%emt 0:00:31] [#] Hoping for Rxd8.} Nf6 {[%emt 0:00:03]} 20. Be3 {[%emt 0:00:01]} Rxd1 {[%emt 0:00:31]} 21. Rxd1 {[%emt 0:00:17]} Bb8 {[%emt 0:00:13]} 22. Nc5 {[%emt 0:00:28]} Bc8 {[%emt 0:00:04]} 23. b4 {[%emt 0:00:01]} Bc7 {[%emt 0:00:15]} 24. Qa4 {[%emt 0:01:21]} Bb6 {[%emt 0:01:12]} 25. Qc2 {[%emt 0:00:53]} a5 {[%emt 0:01:03]} 26. Re1 {[%emt 0:00:16]} axb4 {[%emt 0:00:05]} 27. axb4 {[%emt 0:00:00]} Bc7 {[%emt 0:00:53]} 28. Bd2 {[%emt 0:00:01]} Nd7 {[%emt 0:00:14]} 29. f4 {[%emt 0:00:11]} Nxc5 {[%emt 0:01:19]} 30. bxc5 {[%emt 0:00:00]} b6 {[%emt 0:00:01]} 31. cxb6 {[%emt 0:00:25]} Bxb6+ {[%emt 0:00:00]} 32. Kh2 {[%emt 0:00:00]} Rd8 {[%emt 0:00:06]} 33. Bc3 {[%emt 0:00:13]} Qc5 {[%emt 0:00:52]} 34. Rc1 {[%emt 0:00:28]} Qe3 {[%emt 0:00:07] aiming for ...Rd3.} 35. Re1 {[%emt 0:00:24]} Qc5 {[%emt 0:00:03]} 36. e5 {[%emt 0:01:25]} (36. Rc1 $11) 36... h5 {[%emt 0:00:25]} (36... Be6 $15 37. Ra1 h5) 37. h4 $11 {[%emt 0:00:42] The position is equal.} Bg4 {[%emt 0:00:25]} 38. Ra1 {[%emt 0:01:56]} Qe3 {[%emt 0:00:32] White must now prevent ...Rd3.} 39. Re1 {[%emt 0:00:49]} Qf2 {[%emt 0:00:40]} 40. Qe4 {[%emt 0:00:17]} g6 {[%emt 0:01:19]} 41. e6 {[%emt 0:02:05]} Bxe6 {[%emt 0:00:03]} 42. Qxc6 {[%emt 0:00:05] Really sharp!} Bd4 {[%emt 0:01:07] Threatens to win with ...Bd5.} (42... Bd5 43. Re8+ Kh7 {[#]} 44. Qxd5 $3 {[%mdl 512]} Kh6 45. Rxd8 Qg1+ 46. Kh3) 43. Rxe6 {[%emt 0:00:18]} Bxc3 {[%emt 0:00:00]} (43... fxe6 44. Qxe6+ Kg7 45. Qe7+ Kh6 46. Qg5+ (46. Qxd8 Bxc3 47. Qe8 Kh7 $16) 46... Kh7 47. Qe7+ (47. Qxd8 Bxc3 48. Qe7+ Bg7 $16) 47... Kh6 48. Qg5+ (48. Qxd8 Bxc3 49. Qc8 Qe3 $16) 48... Kh7 49. Qe7+ (49. Qxd8 Bxc3 50. Qc7+ Bg7 $16) 49... Kh6 $16) 44. Qxc3 {[%emt 0:00:04]} fxe6 {[%emt 0:00:02][%mdl 4096] Endgame KQR-KQB} 45. Qf6 {[%emt 0:00:00][%csl LRd8,LRe6,LRg6]} Rd2 {[%emt 0:00:01][%csl Gd2][%cal Rf2g2]} 46. Qxg6+ {[%emt 0:00:04]} Kf8 {[%emt 0:00:01][%csl Gd2][%cal Rf2g2]} 47. Qf6+ {[%emt 0:00:02]} Ke8 {[%emt 0:00:01][%csl Gd2][%cal Rf2g2]} 48. Qxe6+ {[%emt 0:00:01]} Kd8 {[%emt 0:00:00][%csl Gd2][%cal Rf2g2]} 49. Qe4 {[%emt 0:00:11]} Re2 {[%emt 0:00:04]} ({Don't play} 49... Rd1 50. Qa8+ Ke7 51. Qb7+ (51. Kh3 Rd2 $14) 51... Rd7 52. Qb4+ Rd6 53. Qe4+ Kd8 54. Qa8+ Ke7 55. Qe4+ Kd8 56. Kh3 $14) 50. Qd5+ {[%emt 0:00:05]} Ke7 {[%emt 0:00:04]} 51. Kh3 {[%emt 0:00:03]} Rd2 {[%emt 0:00:02]} 52. Qe5+ {[%emt 0:00:22]} Kd7 {[%emt 0:00:06][%csl Gd2][%cal Rf2g2]} 53. Qe4 {[%emt 0:00:04]} Kd6 {[%emt 0:00:07]} 54. Qf3 {[%emt 0:00:59]} Ke6 {[%emt 0:00:13]} ({But not} 54... Qxf3 55. Bxf3 Rf2 56. Bxh5 $18) 55. Qb7 {[%emt 0:00:03]} Kf6 {[%emt 0:00:15]} 56. Qc6+ {[%emt 0:00:01]} Ke7 {[%emt 0:00:04]} 57. Qf3 {[%emt 0:00:03]} Kf6 {[%emt 0:00:15]} 58. Qe4 {[%emt 0:00:01] And now Qe5+ would win.} Qc5 {[%emt 0:00:13] Inhibits Qe5+.} ({Don't take} 58... Qe2 59. Qxe2 Rxe2 60. Bf3 $16) 59. Kh2 {[%emt 0:00:17]} Qb5 {[%emt 0:00:26]} 60. Qa8 {[%emt 0:00:29]} Qe2 {[%emt 0:00:08]} 61. Qb7 {[%emt 0:00:10]} Ke6 {[%emt 0:00:02]} 62. Qc6+ {[%emt 0:00:02]} Ke7 {[%emt 0:00:01]} 63. f5 {[%emt 0:00:03]} Qxg2+ {[%emt 0:00:04]} 64. Qxg2 {[%emt 0:00:02]} Rxg2+ {[%emt 0:00:00]} 65. Kxg2 {[%emt 0:00:01] Intending Kf3 and mate. KP-KP} Kf6 {[%emt 0:00:00]} 66. Kf3 {[%emt 0:00:13] Threatening mate with Kf4.} Kxf5 {[%emt 0:00:01]} 67. g4+ {[%emt 0:00:01]} hxg4+ {[%emt 0:00:00] KP-KP} 68. Kg3 {[%emt 0:00:00]} Kg6 {[%emt 0:00:01]} 69. Kxg4 {[%emt 0:00:00] KP-K} Kh6 {[%emt 0:00:00]} 70. h5 {[%emt 0:00:00][%cal Bh4h5,Bh5h6,Bh6h7][%mdl 32]} Kh7 {[%emt 0:00:00]} 71. Kg5 {[%emt 0:00:00]} Kg7 {[%emt 0:00:01]} 72. h6+ {[%emt 0:00:00]} Kh7 {[%emt 0:00:00]} 73. Kh5 {[%emt 0:00:00]} Kh8 {[%emt 0:00:00]} 74. Kg6 {[%emt 0:00:00]} Kg8 {[%emt 0:00:01]} 75. h7+ {[%emt 0:00:00]} Kh8 {[%emt 0:00:00]} 76. Kh6 {[%emt 0:00:00] A balanced but interesting game.  Weighted Error Value: White=0.03 (flawless) /Black=0.05 (flawless)} 1/2-1/2

[Event "FTX Crypto Cup MCCT 2022"]
[Site "Miami"]
[Date "2022.08.11"]
[Round "3.3"]
[White "Giri, Anish"]
[Black "Firouzja, Alireza"]
[Result "1/2-1/2"]
[ECO "E04"]
[WhiteElo "2760"]
[BlackElo "2793"]
[Annotator "TA"]
[PlyCount "64"]
[EventDate "2022.08.10"]
[EventType "tourn"]
[EventCountry "USA"]
[SourceTitle "playchess.com"]
[Source "ChessBase"]
[SourceQuality "1"]
[TimeControl "900+10"]

{[%evp 24,64,40,43,37,14,21,14,20,12,15,11,10,20,9,8,13,8,8,2,6,0,0,0,2,0,0,0,5,0,5,0,9,0,0,0,14,0,0,0,8,0,10]} 1. d4 {[%emt 0:00:00]} Nf6 {[%emt 0:00:00]} 2. c4 {[%emt 0:00:01]} e6 {[%emt 0:00:02]} 3. Nf3 {[%emt 0:00:01]} d5 {[%emt 0:00:00]} 4. g3 {[%emt 0:00:01]} dxc4 {[%emt 0:00:01]} 5. Bg2 {[%emt 0:00:00]} c5 {[%emt 0:00:01]} 6. O-O {[%emt 0:00:01]} Nc6 {[%emt 0:00:01]} 7. Qa4 {[%emt 0:00:02]} Bd7 {[%emt 0:00:05]} 8. Qxc4 {[%emt 0:00:01]} cxd4 {[%emt 0:00:18]} 9. Nxd4 {[%emt 0:00:03]} Rc8 {[%emt 0:00:05]} 10. Nc3 {[%emt 0:00:00]} Nxd4 {[%emt 0:00:01]} 11. Qxd4 {[%emt 0:00:00]} Bc5 {[%emt 0:00:03]} 12. Qh4 {[%emt 0:00:01]} Bc6 {[%emt 0:00:10]} 13. Rd1 {[%emt 0:03:11]} Qa5 {[%emt 0:01:13] E04: Open Catalan: 5 Nf3.} 14. Bd2 {[%emt 0:05:24]} Be7 {[%emt 0:01:23] [#] The position is equal.} 15. Nd5 $1 {[%emt 0:03:18]} Nxd5 {[%emt 0:00:26][%cal Bf6d5,Bd5e7,Be7c6][%mdl 32]} 16. Qxe7+ {[%emt 0:00:02]} Nxe7 {[%emt 0:00:02]} 17. Bxa5 {[%emt 0:00:00]} Bxg2 {[%emt 0:00:07]} 18. Kxg2 {[%emt 0:00:00]} Nc6 {[%emt 0:00:06]} 19. Bc3 {[%emt 0:00:01]} f6 {[%emt 0:00:07] [#]} 20. Rd3 $146 {[%emt 0:00:02]} ({Predecessor:} 20. b4 a6 21. a4 Ne7 22. Be1 f5 23. Rd6 Rc6 24. Rxc6 bxc6 25. Rd1 Nd5 26. Kf3 {½-½ (53) Ftacnik,L (2520)-Peters,J (2485) Hastings 1981}) 20... Ke7 {[%emt 0:00:17]} 21. Rad1 {[%emt 0:00:02] [#] aiming for Rd7+.} Rhd8 {[%emt 0:00:10] Prevents Rd7+.} 22. Rxd8 {[%emt 0:00:01]} Rxd8 {[%emt 0:00:03]} 23. Rxd8 {[%emt 0:00:02]} Kxd8 $11 {[%emt 0:00:18][%mdl 4096] Endgame KB-KN} 24. f4 {[%emt 0:00:45]} Ke7 {[%emt 0:00:13]} 25. Kf3 {[%emt 0:00:00]} g6 {[%emt 0:00:24]} 26. e4 {[%emt 0:00:08]} b5 {[%emt 0:00:26]} 27. Ke3 {[%emt 0:00:07]} f5 {[%emt 0:00:04]} 28. Kd3 {[%emt 0:00:29]} a6 {[%emt 0:00:04]} 29. Bd2 {[%emt 0:00:05]} Kf7 {[%emt 0:00:08]} 30. Bc3 {[%emt 0:00:01]} Ke7 {[%emt 0:00:01]} 31. Bd2 {[%emt 0:00:01]} Kf7 {[%emt 0:00:01]} 32. Bc3 {[%emt 0:00:00]} Ke7 {[%emt 0:00:01] Weighted Error Value: White=0.05 (flawless) /Black=0.02 (flawless)} 1/2-1/2

[Event "FTX Crypto Cup MCCT 2022"]
[Site "Miami"]
[Date "2022.08.11"]
[Round "3.3"]
[White "Le, Quang Liem"]
[Black "Duda, Jan-Krzysztof"]
[Result "1/2-1/2"]
[ECO "D24"]
[WhiteElo "2722"]
[BlackElo "2750"]
[Annotator "TA"]
[PlyCount "142"]
[EventDate "2022.08.10"]
[EventType "tourn"]
[EventCountry "USA"]
[SourceTitle "playchess.com"]
[Source "ChessBase"]
[SourceQuality "1"]
[TimeControl "900+10"]

{[%evp 9,142,14,18,0,0,0,19,0,18,0,92,68,63,60,91,95,88,72,84,68,99,91,112,82,83,82,110,18,54,43,44,0,0,-22,-12,-19,-21,-20,-18,-19,-9,-24,0,-14,0,-16,0,0,0,0,19,0,0,7,0,0,102,0,13,10,10,20,0,0,0,0,0,0,0,0,0,0,0,0,0,0,0,0,0,-133,-132,-129,-122,-119,-135,-107,-97,-115,0,0,0,0,0,-8,-8,-8,0,0,0,0,0,0,0,0,0,0,0,0,0,0,0,0,0,0,20,20,20,20,20,20,20,20,20,20,20,20,20,20,20,20,20,20,22,-8,-8]} 1. d4 {[%emt 0:00:00]} Nf6 {[%emt 0:00:00]} 2. Nf3 {[%emt 0:00:02]} d5 {[%emt 0:00:06]} 3. c4 {[%emt 0:00:06]} e6 {[%emt 0:00:01]} 4. Nc3 {[%emt 0:00:11]} dxc4 {[%emt 0:00:04]} 5. e4 {[%emt 0:00:22]} Bb4 {[%emt 0:00:28]} 6. Bxc4 {[%emt 0:00:21] D24: Queen's Gambit Accepted: 3 Nf3 Nf6 4 Nc3.} Nxe4 {[%emt 0:00:02]} 7. O-O {[%emt 0:00:00]} Nxc3 {[%emt 0:00:15]} 8. bxc3 {[%emt 0:00:00]} (8. Qb3 Nd5 9. Bxd5 Qxd5 $17) 8... Bd6 {[%emt 0:00:16]} 9. Ng5 {[%emt 0:00:10][%mdl 1024] [#] White has compensation.} Nd7 $146 {[%emt 0:01:15]} (9... h6 $11 10. Ne4 O-O) ({Predecessor:} 9... h6 10. Qh5 O-O 11. Ne4 f5 12. Nxd6 cxd6 13. Bxh6 gxh6 14. Qg6+ Kh8 15. Qxh6+ Kg8 16. Qg6+ Kh8 17. Qh6+ Kg8 18. Qg6+ {½-½ (18) Lenic,L (2644)-Aronian,L (2758) Batumi 2019}) 10. Qh5 {[%emt 0:01:10][%csl Gg5,LRe6,LRf7,LRh7][%cal Rh5f7] [#]} g6 {[%emt 0:00:08]} 11. Qh6 {[%emt 0:01:19]} Nf6 {[%emt 0:00:13]} 12. Qg7 {[%emt 0:00:26][%csl Gg5,LRf7,LRh8][%cal Rg7f7]} Rf8 {[%emt 0:00:00]} 13. Re1 {[%emt 0:00:09]} ({Of course not} 13. Nxh7 $6 Nxh7 14. Qxh7 Qf6 $15) 13... Qe7 {[%emt 0:00:39][%cal Od6h2]} 14. Nf3 {[%emt 0:02:21][%cal Od4d5] White is much more active. The black rooks are badly placed.} (14. Nxh7 $6 Nxh7 15. Qxh7 Qf6 $15) 14... Nh5 {[%emt 0:05:35][%cal Bf6h5,Bh5g7,Bg7f5][%mdl 32]} 15. Qxh7 {[%emt 0:00:29]} Qf6 {[%emt 0:00:22]} 16. Bg5 {[%emt 0:00:05]} Qh8 {[%emt 0:00:05]} 17. Qxh8 {[%emt 0:00:01]} Rxh8 {[%emt 0:00:00]} 18. Bd2 {[%emt 0:03:25]} (18. Ne5 $16) 18... Ng7 {[%emt 0:00:31]} 19. Ne5 {[%emt 0:00:17]} Kf8 {[%emt 0:02:04]} 20. Re4 {[%emt 0:01:30]} Nf5 {[%emt 0:00:14]} 21. Bg5 {[%emt 0:00:33]} Kg7 {[%emt 0:00:53]} 22. Ng4 {[%emt 0:00:03] Prevents f6.} Be7 {[%emt 0:00:01] Inhibits Bf6+.} 23. Bxe7 {[%emt 0:00:03]} Nxe7 {[%emt 0:00:00]} 24. Ne5 {[%emt 0:00:04]} a5 {[%emt 0:00:45]} 25. Rae1 {[%emt 0:00:11]} a4 {[%emt 0:00:07]} 26. Rf4 {[%emt 0:00:08]} Nf5 {[%emt 0:00:36]} 27. Bd3 {[%emt 0:00:32]} Ra5 {[%emt 0:00:54]} 28. g3 {[%emt 0:00:34]} Rf8 {[%emt 0:00:43]} 29. h4 {[%emt 0:00:18]} Ne7 {[%emt 0:00:01]} 30. Rf3 {[%emt 0:00:14]} b6 {[%emt 0:00:01]} 31. g4 {[%emt 0:00:25]} Bb7 {[%emt 0:00:35] [#] Threatens to win with ...Rxe5.} 32. Rg3 {[%emt 0:01:04]} Bd5 {[%emt 0:01:39]} (32... Rh8 $11 {remains equal.}) 33. a3 {[%emt 0:00:26]} (33. c4 $16) 33... f6 {[%emt 0:00:10]} 34. Nc4 {[%emt 0:00:07]} Rb5 {[%emt 0:00:01]} 35. Ne3 {[%emt 0:01:00]} Rb3 {[%emt 0:00:02][%csl LRa3,LRc3]} 36. Bc2 {[%emt 0:00:25]} Rxa3 {[%emt 0:00:21] ...Bb3 is the strong threat.} 37. c4 $1 {[%emt 0:00:01]} (37. Nxd5 Nxd5 38. Rxe6 Ra1+ 39. Kh2 Nf4 $17) 37... Bc6 {[%emt 0:00:23]} 38. d5 {[%emt 0:01:22]} exd5 {[%emt 0:00:17]} 39. Nf5+ $1 {[%emt 0:00:01]} Nxf5 {[%emt 0:00:01]} 40. Rxa3 {[%emt 0:00:02]} Nxh4 {[%emt 0:00:51]} 41. Re6 {[%emt 0:00:42]} Bd7 {[%emt 0:00:09]} 42. Re7+ {[%emt 0:00:03]} Rf7 {[%emt 0:00:01]} 43. Rxf7+ {[%emt 0:00:02]} Kxf7 {[%emt 0:00:00]} 44. cxd5 $11 {[%emt 0:00:27][%mdl 4096] Endgame KRB-KBN} (44. Bxa4 $11 Bxa4 45. Rxa4) 44... b5 $17 {[%emt 0:00:10]} 45. Rc3 {[%emt 0:00:03]} Ke7 {[%emt 0:00:23] Strongly threatening ...Kd6.} (45... Bxg4 $6 46. Rxc7+ Ke8 47. Kf1 $14) 46. Rxc7 {[%emt 0:00:02]} Kd6 {[%emt 0:00:01][%csl LRc7,LRd5,LRg4]} 47. Rb7 {[%emt 0:00:03]} Nf3+ {[%emt 0:00:15]} ({Reject} 47... Bxg4 $6 48. Rxb5 Nf3+ 49. Kg2 $11) 48. Kf1 {[%emt 0:00:10]} Ne5 {[%emt 0:01:02]} (48... Nd4 $17 49. Bxg6 Bxg4) 49. f4 $11 {[%emt 0:00:55] The position is equal.} Nxg4 {[%emt 0:00:03] aiming for ...Ne3+.} 50. Bd3 {[%emt 0:00:01]} Ne3+ {[%emt 0:00:28]} 51. Kf2 $132 {[%emt 0:00:01][%mdl 2048] White is not holding back} Nxd5 {[%emt 0:00:15]} 52. Bxb5 {[%emt 0:00:02]} Bxb5 {[%emt 0:00:08]} 53. Rxb5 {[%emt 0:00:00]} Nxf4 {[%emt 0:00:00] KR-KN} (53... Nc3 $5 54. Ra5 Ne4+ 55. Ke2 Nc5 $11) 54. Ke3 {[%emt 0:00:20]} g5 {[%emt 0:00:07]} 55. Ra5 {[%emt 0:00:06]} Nd5+ {[%emt 0:00:20]} 56. Ke4 {[%emt 0:00:14]} Nc3+ {[%emt 0:00:13]} 57. Kd4 {[%emt 0:00:13]} Ne2+ {[%emt 0:00:03]} 58. Ke3 $1 {[%emt 0:00:11]} Nf4 {[%emt 0:00:15]} 59. Ke4 $1 {[%emt 0:00:03]} Ne6 {[%emt 0:00:05]} 60. Ra6+ {[%emt 0:00:14]} Ke7 {[%emt 0:00:03] ( -> ...Nc5+)} 61. Ra7+ {[%emt 0:00:09]} Kd8 {[%emt 0:00:07]} 62. Kf5 {[%emt 0:00:09]} Nc5 {[%emt 0:00:00]} 63. Ra5 {[%emt 0:00:04]} Nd7 {[%emt 0:00:17]} 64. Ke6 {[%emt 0:00:17] And now Rd5 would win.} Nb6 {[%emt 0:00:17] Inhibits Rd5+.} 65. Kxf6 {[%emt 0:00:11]} g4 {[%emt 0:00:01]} 66. Rg5 {[%emt 0:00:13]} a3 {[%emt 0:00:05]} 67. Rxg4 {[%emt 0:00:04]} a2 {[%emt 0:00:02]} 68. Rg1 {[%emt 0:00:02]} Nd5+ {[%emt 0:00:02]} 69. Ke5 {[%emt 0:00:09]} Nc3 {[%emt 0:00:01]} 70. Ra1 {[%emt 0:00:07]} Kc7 {[%emt 0:00:03]} 71. Rxa2 {[%emt 0:00:00]} Nxa2 {[%emt 0:00:01] Weighted Error Value: White=0.14 (very precise) /Black=0.13 (very precise)} 1/2-1/2

[Event "FTX Crypto Cup MCCT 2022"]
[Site "Miami"]
[Date "2022.08.11"]
[Round "3.3"]
[White "Niemann, Hans Moke"]
[Black "Praggnanandhaa R"]
[Result "1/2-1/2"]
[ECO "B30"]
[WhiteElo "2688"]
[BlackElo "2648"]
[Annotator "TA"]
[PlyCount "68"]
[EventDate "2022.08.10"]
[EventType "tourn"]
[EventCountry "USA"]
[SourceTitle "playchess.com"]
[Source "ChessBase"]
[SourceQuality "1"]
[TimeControl "900+10"]

{[%evp 9,68,6,56,32,41,31,39,24,37,20,31,18,45,45,43,41,43,45,43,12,18,13,17,14,18,7,8,5,5,6,6,10,9,0,0,-4,-4,-4,-4,-4,-4,-4,-4,-4,-4,-3,-6,-111,0,0,0,0,0,0,0,0,0,0,0,0,0]} 1. e4 {[%emt 0:00:00]} c5 {[%emt 0:00:00]} 2. Nf3 {[%emt 0:00:03]} Nc6 {[%emt 0:00:02]} 3. Bb5 {[%emt 0:00:01]} e6 {[%emt 0:00:14]} 4. O-O {[%emt 0:00:03]} Nge7 {[%emt 0:00:01]} 5. Re1 {[%emt 0:00:00]} h6 {[%emt 0:00:02]} (5... a6 $11 6. Bxc6 Nxc6) 6. b3 {[%emt 0:00:10] B30: Sicilian: 2...Nc6 3 Bb5, lines without ...g6.} (6. c3 $5 {[%cal Rd2d4]}) 6... a6 {[%emt 0:00:02]} 7. Bxc6 {[%emt 0:00:00]} Nxc6 {[%emt 0:00:01]} 8. Bb2 {[%emt 0:00:01] White is slightly better.} b5 {[%emt 0:00:01]} 9. a4 {[%emt 0:00:00] And now axb5 would win.} b4 {[%emt 0:00:01]} 10. d3 {[%emt 0:00:00][%cal Oa4a5] [#]} d6 $146 {[%emt 0:00:01]} ({Predecessor:} 10... h5 11. Nbd2 f6 12. e5 d5 13. exd6 Bxd6 14. Nc4 Bc7 15. Qe2 Qd5 16. Rad1 e5 {½-½ (32) Nguyen,T (2612)-Tabatabaei,M (2650) Jermuk 2022}) 11. d4 $1 {[%emt 0:00:01] Against e5} cxd4 {[%emt 0:00:01]} 12. Nxd4 {[%emt 0:00:01]} Nxd4 {[%emt 0:00:00]} 13. Qxd4 {[%emt 0:00:00]} Rb8 {[%emt 0:00:01]} 14. Nd2 {[%emt 0:00:02][%cal Bb1d2,Bd2c4,Bc4e3][%mdl 32]} e5 $1 {[%emt 0:00:02]} 15. Qd3 {[%emt 0:00:02][%cal Of2f4]} Be7 {[%emt 0:00:01]} 16. Rad1 {[%emt 0:00:01]} O-O {[%emt 0:00:02][%cal Bh8f8,Bf8f7,Bf7c7][%mdl 32]} 17. Nc4 {[%emt 0:00:02][%cal Rc4d6]} Bg4 {[%emt 0:00:01]} 18. Rd2 {[%emt 0:00:04]} Bg5 {[%emt 0:00:01]} 19. Ne3 {[%emt 0:00:04]} Qc8 {[%emt 0:00:01]} ({But not} 19... Bxe3 20. Rxe3 Qb6 21. h3 $14 (21. Qxd6 f6 $16)) 20. Qxd6 {[%emt 0:01:42]} f6 {[%emt 0:00:04]} 21. Qd3 {[%emt 0:02:14][%cal Oh2h4]} Rf7 {[%emt 0:05:37] [#] aiming for ...Rd7.} 22. Qf1 {[%emt 0:00:58]} Rc7 {[%emt 0:01:32]} 23. f3 $1 {[%emt 0:00:07]} Bxe3+ {[%emt 0:02:25]} 24. Rxe3 {[%emt 0:00:03]} Rxc2 {[%emt 0:00:04]} 25. Rxc2 {[%emt 0:01:32]} Qxc2 {[%emt 0:00:00]} 26. fxg4 {[%emt 0:02:38]} Qxb2 $11 {[%emt 0:00:03][%mdl 4096] Endgame KQR-KQR} 27. Qc4+ {[%emt 0:00:01]} Kh7 {[%emt 0:00:41]} 28. Rd3 {[%emt 0:00:03] [#] Inhibits Rd8.} (28. h3 $11) 28... Rc8 {[%emt 0:02:12]} 29. Qxc8 {[%emt 0:00:03] Intending Qf5+ and mate. The position is equal.} Qb1+ {[%emt 0:00:01]} 30. Kf2 {[%emt 0:00:01] White wants to mate with Qf5+.} Qxd3 {[%emt 0:00:01]} 31. Qf5+ {[%emt 0:00:01]} Kh8 {[%emt 0:00:40]} 32. Qc8+ {[%emt 0:00:03]} Kh7 {[%emt 0:00:01] Hoping for ...Qd2+.} 33. Qf5+ {[%emt 0:00:01]} Kh8 {[%emt 0:00:01]} 34. Qc8+ {[%emt 0:00:01]} Kh7 {[%emt 0:00:00] Weighted Error Value: White=0.11 (very precise) /Black=0.09 (flawless)} 1/2-1/2